fUSD/lending_fUSD_20241111
["ID","MTS","AMOUNT","RATE_DAILY","PERIOD"]
[341980070,1731341466959,-656.66,0.00013698,2]
[341980071,1731341466982,-1625.35,0.00013698,2]
[341980072,1731341467000,-732.78,0.00013698,2]
[341980073,1731341467011,-656.66,0.00013698,2]
[341980074,1731341467020,-1625.35,0.00013698,2]
[341980075,1731341467030,-732.78,0.00013698,2]
[341980076,1731341467040,-656.66,0.00013698,2]
[341980077,1731341467050,-1625.35,0.00013698,2]
[341980078,1731341467059,-732.78,0.00013698,2]
[341980079,1731341467069,-656.66,0.00013698,2]
[341980080,1731341467079,-1625.35,0.00013698,2]
[341980081,1731341467088,-732.78,0.00013698,2]
[341980082,1731341467099,-656.66,0.00013698,2]
[341980083,1731341467112,-1625.35,0.00013698,2]
[341980084,1731341467121,-732.78,0.00013698,2]
[341980085,1731341467131,-656.66,0.00013698,2]
[341980086,1731341467141,-1625.35,0.00013698,2]
[341980087,1731341467150,-732.78,0.00013698,2]
[341980088,1731341467159,-323.60093579,0.00013698,2]
[341980089,1731341467168,-656.66,0.00013698,2]
[341980090,1731341467178,-1625.35,0.00013698,2]
[341980091,1731341467188,-732.78,0.00013698,2]
[341980092,1731341467197,-1625.35,0.00013698,2]
[341980093,1731341467206,-732.86428128,0.00013698,2]
[341980094,1731341467219,-1625.35,0.00013698,2]
[341980095,1731341467234,-656.66,0.00013698,2]
[341980096,1731341467243,-656.66,0.00013698,2]
[341980097,1731341467252,-1625.35,0.00013698,2]
[341980098,1731341467261,-656.66,0.00013698,2]
[341980099,1731341467272,-1625.35,0.00013698,2]
[341980100,1731341467282,-824.34362064,0.00013698,2]
[341980101,1731341467487,-801.00637936,0.00013698,2]
[341980102,1731341467497,-1625.35,0.00013698,2]
[341980103,1731341467507,-1625.35,0.00013698,2]
[341980104,1731341467516,-1625.35,0.00013698,2]
[341980105,1731341467526,-1625.55165323,0.00013698,2]
[341980106,1731341467535,-656.66,0.00013698,2]
[341980107,1731341467545,-500.0,0.00013698,2]
[341980108,1731341467554,-656.66,0.00013698,2]
[341980109,1731341467563,-500.0,0.00013698,2]
[341980110,1731341467572,-656.66,0.00013698,2]
[341980111,1731341467581,-500.0,0.00013698,2]
[341980112,1731341467590,-656.66,0.00013698,2]
[341980113,1731341467599,-500.0,0.00013698,2]
[341980114,1731341467613,-656.66,0.00013698,2]
[341980115,1731341467623,-500.0,0.00013698,2]
[341980116,1731341467632,-656.66,0.00013698,2]
[341980117,1731341467641,-192.08552547,0.00013698,2]
[341980118,1731341467688,-307.91447453,0.00013698,2]
[341980119,1731341467697,-656.66,0.00013698,2]
[341980120,1731341467707,-374.3378879,0.00013698,2]
[341980121,1731341467715,-656.66,0.00013698,2]
[341980122,1731341467724,-500.0,0.00013698,2]
[341980123,1731341467734,-656.66,0.00013698,2]
[341980124,1731341467743,-261.12972465,0.00013698,2]
[341980125,1731341467752,-500.0,0.00013698,2]
[341980126,1731341467761,-656.66,0.00013698,2]
[341980127,1731341467771,-500.0,0.00013698,2]
[341980128,1731341467780,-656.66,0.00013698,2]
[341980129,1731341467790,-500.0,0.00013698,2]
[341980130,1731341467799,-500.0,0.00013698,2]
[341980131,1731341467809,-500.0,0.00013698,2]
[341980132,1731341467819,-656.75178197,0.00013698,2]
[341980133,1731341467829,-500.0,0.00013698,2]
[341980134,1731341467839,-500.0,0.00013698,2]
[341980135,1731341467848,-500.0,0.00013698,2]
[341980136,1731341467857,-500.0,0.00013698,2]
[341980137,1731341467871,-150.15808501,0.00013698,2]
[341980138,1731341468200,-229.4674015,0.0001299,2]
[341980139,1731341468212,-349.84191499,0.00013698,2]
[341980140,1731341468227,-500.0,0.00013698,2]
[341980141,1731341468236,-500.0,0.00013698,2]
[341980142,1731341468245,-500.0,0.00013698,2]
[341980143,1731341468255,-500.0,0.00013698,2]
[341980144,1731341468264,-500.0,0.00013698,2]
[341980145,1731341468273,-500.0,0.00013698,2]
[341980146,1731341468282,-500.0,0.00013698,2]
[341980147,1731341468292,-500.0,0.00013698,2]
[341980148,1731341468301,-500.0,0.00013698,2]
[341980149,1731341468311,-500.0,0.00013698,2]
[341980150,1731341468319,-500.0,0.00013698,2]
[341980151,1731341468328,-500.0,0.00013698,2]
[341980152,1731341468338,-522.01366557,0.00013698,2]
[341980153,1731341468346,-500.0,0.00013698,2]
[341980154,1731341468355,-500.0,0.00013698,2]
[341980155,1731341468367,-633.12,0.00013698,2]
[341980156,1731341468375,-500.0,0.00013698,2]
[341980157,1731341468384,-223.25998265,0.00013698,2]
[341980158,1731341468394,-827.44,0.00013698,2]
[341980159,1731341468403,-500.0,0.00013698,2]
[341980160,1731341468413,-827.44,0.00013698,2]
[341980161,1731341468421,-827.44,0.00013698,2]
[341980162,1731341468431,-500.0,0.00013698,2]
[341980163,1731341468440,-827.44,0.00013698,2]
[341980164,1731341468449,-827.44,0.00013698,2]
[341980165,1731341468457,-827.44,0.00013698,2]
[341980166,1731341468466,-827.44,0.00013698,2]
[341980167,1731341468475,-827.44,0.00013698,2]
[341980168,1731341468484,-500.0,0.00013698,2]
[341980169,1731341468493,-827.44,0.00013698,2]
[341980170,1731341468502,-500.0,0.00013698,2]
[341980171,1731341468511,-827.44,0.00013698,2]
[341980172,1731341468520,-500.0,0.00013698,2]
[341980173,1731341468529,-827.44,0.00013698,2]
[341980174,1731341468538,-500.0,0.00013698,2]
[341980175,1731341468547,-150.0,0.00013698,2]
[341980176,1731341468556,-827.44,0.00013698,2]
[341980177,1731341468565,-150.0,0.00013698,2]
[341980178,1731341468575,-827.44,0.00013698,2]
[341980179,1731341468584,-150.0,0.00013698,2]
[341980180,1731341468593,-827.44,0.00013698,2]
[341980181,1731341468602,-827.44,0.00013698,2]
[341980182,1731341468615,-34.08195785,0.00013698,2]
[341980183,1731341469592,1616.6913,0.00012207,2]
[341980185,1731341485225,7302.3434,0.00012207,2]
[341980186,1731341485249,10000.0,0.00012207,2]
[341980187,1731341485276,10000.0,0.00012207,2]
[341980188,1731341485301,1686.4231,0.00012207,2]
[341980189,1731341517406,150.0,0.00011908,2]
[341980190,1731341543575,2037.2528,0.00012207,2]
[341980191,1731341568353,1424.68,0.00010875,2]
[341980192,1731341603610,153.55,0.00010211,2]
[341980193,1731341712762,2000.0,0.00024,60]
[341980194,1731341725212,2000.0,0.00025,120]
[341980195,1731341789851,2000.0,0.000212,30]
[341980196,1731341813713,612.49603747,0.000212,30]
[341980197,1731342013186,250.0,0.000123,2]
[341980199,1731342193225,331.01,0.00025,120]
[341980200,1731342200349,601.40843,0.00025,120]
[341980201,1731342220813,-4298.0941,0.00012502,2]
[341980202,1731342227276,-1247.0,0.00012502,2]
[341980203,1731342291450,1353.44,0.00010709,2]
[341980207,1731342348147,-1620.37671179,0.00012459,2]
[341980208,1731342348170,-2747.03,0.00012537,2]
[341980209,1731342348193,-202.54,0.00012559,2]
[341980210,1731342348215,-250.0,0.00012602,2]
[341980211,1731342348237,-187.1,0.00012602,2]
[341980212,1731342348262,-159.56,0.00012628,2]
[341980213,1731342348285,-250.0,0.00012727,2]
[341980214,1731342348307,-1000.0,0.00012729,2]
[341980215,1731342348329,-165.66,0.00012757,2]
[341980216,1731342348351,-475.55,0.00012802,2]
[341980217,1731342348375,-346.06,0.00012836,2]
[341980218,1731342348397,-300.0,0.00012892,2]
[341980219,1731342348419,-6367.88,0.00012893,2]
[341980220,1731342348441,-12263.51,0.00012893,2]
[341980221,1731342348462,-9999.99,0.00012893,2]
[341980222,1731342348483,-1119.56,0.00012893,2]
[341980223,1731342348505,-1353.44,0.00012973,2]
[341980224,1731342348535,-3200.0,0.0001298,2]
[341980225,1731342348560,-1100.0,0.0001298,2]
[341980226,1731342348583,-24889.96452818,0.00013,2]
[341980227,1731342353094,-44210.04154033,0.00013,2]
[341980229,1731342405093,-1000.0,0.00012774,2]
[341980230,1731342405115,-300.0,0.00012999,2]
[341980231,1731342405138,-500.0,0.00012999,2]
[341980232,1731342405161,-500.0,0.00012999,2]
[341980233,1731342405183,-500.0,0.00012999,2]
[341980234,1731342405206,-323.93848882,0.00012999,2]
[341980235,1731342425095,-300.0,0.00012998,2]
[341980236,1731342425117,-176.06151118,0.00012999,2]
[341980237,1731342425141,-500.0,0.00012999,2]
[341980238,1731342425163,-335.71700833,0.00012999,2]
[341980239,1731342425185,-500.0,0.00012999,2]
[341980240,1731342425207,-500.0,0.00012999,2]
[341980241,1731342425233,-500.0,0.00012999,2]
[341980242,1731342425256,-493.98673193,0.00012999,2]
[341980243,1731342425276,-355.34534218,0.00012999,2]
[341980244,1731342425297,-556.40465761,0.00012999,2]
[341980245,1731342425324,-450.0,0.00012999,2]
[341980246,1731342425344,-150.0,0.00012999,2]
[341980247,1731342425366,-30769.65356291,0.00013,2]
[341980248,1731342429729,152.0,0.00021151,30]
[341980249,1731342431133,-1000.0,0.0001298,2]
[341980250,1731342431155,-3000.0,0.0001298,2]
[341980251,1731342431177,-2130.97197992,0.00012999,2]
[341980252,1731342453108,-104.85459282,0.00012999,2]
[341980253,1731342453131,-110812.60846308,0.00013,2]
[341980276,1731342632272,-250.0,0.00012639,2]
[341980277,1731342632282,-189.59,0.0001265,2]
[341980278,1731342632292,-200.0,0.0001267,2]
[341980279,1731342632302,-467.67,0.0001279,2]
[341980280,1731342632311,-300.0,0.00012899,2]
[341980281,1731342632320,-9866.5256,0.000129,2]
[341980282,1731342632329,-4135.2778,0.000129,2]
[341980283,1731342632338,-500.0,0.0001298,2]
[341980284,1731342632347,-150.0,0.00012999,2]
[341980285,1731342632356,-251084.01217907,0.00013,2]
[341980286,1731342632367,-123901.41356305,0.00013,2]
[341980287,1731342632380,-3916.16188845,0.00013,2]
[341980288,1731342632392,-3529.84736504,0.00013,2]
[341980289,1731342632403,-9509.76901166,0.00013,2]
[341980290,1731342632414,-5438.05413358,0.00013,2]
[341980291,1731342632425,-77523.47120334,0.00013,2]
[341980292,1731342632442,-846.54801405,0.00013,2]
[341980293,1731342635298,-3869.44697151,0.00013,2]
[341980294,1731342635310,-3296.02384028,0.00013,2]
[341980303,1731342638249,-420.328873,0.00013,2]
[341980305,1731342638260,-15034.54237139,0.00013,2]
[341980306,1731342638271,-1229.17880315,0.00013,2]
[341980307,1731342638282,-312960.60710856,0.00013,2]
[341980308,1731342638293,-16340.76700005,0.00013,2]
[341980309,1731342638484,-134757.93990313,0.00013,2]
[341980310,1731342638496,-1892.54481407,0.00013,2]
[341980311,1731342638506,-532.177731,0.00013,2]
[341980312,1731342638527,-2815.48507689,0.00013,2]
[341980313,1731342638538,-54905.13813024,0.00013,2]
[341980314,1731342638549,-18145.00186658,0.00013,2]
[341980315,1731342638560,-144497.43777547,0.00013,2]
[341980316,1731342638571,-275.27037846,0.00013,2]
[341980317,1731342638590,-5938.63993115,0.00013,2]
[341980318,1731342638601,-3982.52312691,0.00013,2]
[341980319,1731342638613,-2314.75022167,0.00013,2]
[341980463,1731342640278,-597.6738781,0.00013,2]
[341980475,1731342641126,-1410.62169044,0.00013,2]
[341980476,1731342641259,-70395.85701855,0.00013,2]
[341980477,1731342641279,-4574.34243088,0.00013,2]
[341980478,1731342641290,-28097.72770231,0.00013,2]
[341980479,1731342641301,-50000.0,0.00013,2]
[341980480,1731342641318,-987.26722298,0.00013,2]
[341980481,1731342641330,-1881.19793468,0.00013,2]
[341980482,1731342641492,-1061.06999997,0.00013,2]
[341980526,1731342652909,-6598.52550238,0.00013,2]
[341980527,1731342652921,-30103.49999983,0.00013,2]
[341980528,1731342652942,-87614.23868557,0.00013,2]
[341980529,1731342652977,-6453.31095,0.00013,2]
[341980530,1731342652988,-17986.97581871,0.00013,2]
[341980531,1731342652999,-2359.6032812,0.00013,2]
[341980532,1731342653019,-9244.63267744,0.00013,2]
[341980533,1731342653038,-36239.43870288,0.00013,2]
[341980534,1731342653049,-8470.3,0.00013,2]
[341980535,1731342653063,-24375.84009987,0.00013,2]
[341980536,1731342653487,-127014.31505763,0.00013,2]
[341980537,1731342653498,-150.0,0.00013,2]
[341980538,1731342653520,-150.0,0.00013,2]
[341980539,1731342653533,-170.92207422,0.000134,2]
[341980540,1731342653544,-170.92207416,0.00013483,2]
[341980541,1731342653554,-4213.20892187,0.00013529,2]
[341980542,1731342653565,-649.909,0.00013538,2]
[341980543,1731342653576,-814.0,0.00013539,2]
[341980544,1731342653588,-740.255,0.00013539,2]
[341980545,1731342653599,-3744.0,0.00013539,2]
[341980546,1731342653610,-1252.0,0.00013539,2]
[341980547,1731342653622,-5929.0,0.00013539,2]
[341980548,1731342653636,-453.0,0.00013539,2]
[341980549,1731342653648,-631.0,0.00013539,2]
[341980550,1731342653662,-1254.0,0.00013539,2]
[341980551,1731342653672,-150.0,0.00013539,2]
[341980552,1731342653684,-563.0,0.00013539,2]
[341980553,1731342653696,-13631.0,0.00013539,2]
[341980554,1731342653710,-170.92207416,0.00013567,2]
[341980555,1731342653722,-1712.61824046,0.0001359,2]
[341980556,1731342653733,-513.6793959,0.00013598,2]
[341980557,1731342653744,-836.32271334,0.00013598,2]
[341980558,1731342653758,-925.531,0.00013598,2]
[341980559,1731342653771,-3453.89198783,0.000136,2]
[341980560,1731342653782,-1396.0,0.000136,2]
[341980561,1731342653793,-1712.61824046,0.00013624,2]
[341980562,1731342653805,-170.92207416,0.0001365,2]
[341980563,1731342653816,-1712.61824046,0.00013659,2]
[341980564,1731342653827,-3781.828872,0.00013688,2]
[341980565,1731342653838,-8285.0318165,0.00013688,2]
[341980566,1731342653849,-1839.7928432,0.00013688,2]
[341980567,1731342653861,-1118.713897,0.00013688,2]
[341980568,1731342653871,-378619.88281931,0.0001369,2]
[341980569,1731342653915,-12151.29593069,0.0001369,2]
[341980570,1731342653929,-11816.4379182,0.0001369,2]
[341980571,1731342653940,-156.238,0.0001369,2]
[341980572,1731342653951,-1712.61824046,0.00013693,2]
[341980573,1731342653962,-150.93716079,0.00013697,2]
[341980574,1731342653974,-1871.45015603,0.00013697,2]
[341980575,1731342653985,-500.0,0.00013698,2]
[341980576,1731342653996,-500.0,0.00013698,2]
[341980577,1731342654010,-500.0,0.00013698,2]
[341980578,1731342654021,-500.0,0.00013698,2]
[341980579,1731342654032,-500.0,0.00013698,2]
[341980580,1731342654044,-500.0,0.00013698,2]
[341980581,1731342654056,-500.0,0.00013698,2]
[341980582,1731342654068,-500.0,0.00013698,2]
[341980583,1731342654079,-500.0,0.00013698,2]
[341980584,1731342654090,-500.0,0.00013698,2]
[341980585,1731342654101,-500.0,0.00013698,2]
[341980586,1731342654113,-500.0,0.00013698,2]
[341980587,1731342654125,-511.52582165,0.00013698,2]
[341980588,1731342654135,-151.0,0.00013698,2]
[341980589,1731342654147,-151.0,0.00013698,2]
[341980590,1731342654159,-200.0,0.00013698,2]
[341980591,1731342654170,-155.325463,0.00013698,2]
[341980592,1731342654181,-535.40903834,0.00013698,2]
[341980593,1731342654192,-500.0,0.00013698,2]
[341980594,1731342654204,-500.0,0.00013698,2]
[341980595,1731342654215,-500.0,0.00013698,2]
[341980596,1731342654226,-500.0,0.00013698,2]
[341980597,1731342654237,-500.0,0.00013698,2]
[341980598,1731342654248,-500.0,0.00013698,2]
[341980599,1731342654262,-508.49708391,0.00013698,2]
[341980600,1731342654273,-500.0,0.00013698,2]
[341980601,1731342654284,-500.0,0.00013698,2]
[341980602,1731342654295,-511.85870385,0.00013698,2]
[341980603,1731342654306,-500.0,0.00013698,2]
[341980604,1731342654317,-500.0,0.00013698,2]
[341980605,1731342654329,-500.0,0.00013698,2]
[341980606,1731342654340,-500.0,0.00013698,2]
[341980607,1731342654352,-369.24,0.00013698,2]
[341980608,1731342654363,-500.0,0.00013698,2]
[341980609,1731342654374,-500.0,0.00013698,2]
[341980610,1731342654385,-500.0,0.00013698,2]
[341980611,1731342654396,-524.7555038,0.00013698,2]
[341980612,1731342654407,-500.0,0.00013698,2]
[341980613,1731342654419,-500.0,0.00013698,2]
[341980614,1731342654430,-508.53833876,0.00013698,2]
[341980615,1731342654441,-500.0,0.00013698,2]
[341980616,1731342654454,-500.0,0.00013698,2]
[341980617,1731342654464,-535.08,0.00013698,2]
[341980618,1731342654475,-500.0,0.00013698,2]
[341980619,1731342654487,-500.0,0.00013698,2]
[341980620,1731342654498,-500.0,0.00013698,2]
[341980621,1731342654513,-500.0,0.00013698,2]
[341980622,1731342654524,-159.21,0.00013698,2]
[341980623,1731342654535,-500.0,0.00013698,2]
[341980624,1731342654546,-500.0,0.00013698,2]
[341980625,1731342654557,-500.0,0.00013698,2]
[341980626,1731342654568,-500.0,0.00013698,2]
[341980627,1731342654579,-500.0,0.00013698,2]
[341980628,1731342654590,-500.0,0.00013698,2]
[341980629,1731342654601,-500.0,0.00013698,2]
[341980630,1731342654612,-500.0,0.00013698,2]
[341980631,1731342654627,-180.23138802,0.00013698,2]
[341980632,1731342654638,-500.0,0.00013698,2]
[341980633,1731342654649,-620.06988315,0.00013698,2]
[341980634,1731342654662,-500.0,0.00013698,2]
[341980635,1731342654673,-500.0,0.00013698,2]
[341980636,1731342654684,-500.0,0.00013698,2]
[341980637,1731342654695,-500.0,0.00013698,2]
[341980638,1731342654709,-500.0,0.00013698,2]
[341980639,1731342654720,-500.0,0.00013698,2]
[341980640,1731342654731,-468.64,0.00013698,2]
[341980641,1731342654742,-603.14121952,0.00013698,2]
[341980642,1731342654753,-500.0,0.00013698,2]
[341980643,1731342654769,-500.0,0.00013698,2]
[341980644,1731342654780,-500.0,0.00013698,2]
[341980645,1731342654791,-162.23,0.00013698,2]
[341980646,1731342654802,-500.0,0.00013698,2]
[341980647,1731342654814,-500.0,0.00013698,2]
[341980648,1731342654825,-500.0,0.00013698,2]
[341980649,1731342654836,-500.0,0.00013698,2]
[341980650,1731342654847,-500.0,0.00013698,2]
[341980651,1731342654858,-500.0,0.00013698,2]
[341980652,1731342654869,-500.0,0.00013698,2]
[341980653,1731342654880,-500.0,0.00013698,2]
[341980654,1731342654891,-500.0,0.00013698,2]
[341980655,1731342654902,-500.0,0.00013698,2]
[341980656,1731342654913,-500.0,0.00013698,2]
[341980657,1731342654924,-500.0,0.00013698,2]
[341980658,1731342654935,-500.0,0.00013698,2]
[341980659,1731342654946,-500.0,0.00013698,2]
[341980660,1731342654957,-500.0,0.00013698,2]
[341980661,1731342654968,-370.96550816,0.00013698,2]
[341980662,1731342654979,-500.0,0.00013698,2]
[341980663,1731342654990,-500.0,0.00013698,2]
[341980664,1731342655001,-500.0,0.00013698,2]
[341980665,1731342655018,-500.0,0.00013698,2]
[341980666,1731342655029,-500.0,0.00013698,2]
[341980667,1731342655040,-500.0,0.00013698,2]
[341980668,1731342655051,-500.0,0.00013698,2]
[341980669,1731342655062,-500.0,0.00013698,2]
[341980670,1731342655074,-500.0,0.00013698,2]
[341980671,1731342655085,-151.0,0.00013698,2]
[341980672,1731342655095,-500.0,0.00013698,2]
[341980673,1731342655107,-574.78972242,0.00013698,2]
[341980674,1731342655118,-1193.57,0.00013698,2]
[341980675,1731342655129,-500.0,0.00013698,2]
[341980676,1731342655140,-1193.57,0.00013698,2]
[341980677,1731342655151,-500.0,0.00013698,2]
[341980678,1731342655160,-500.0,0.00013698,2]
[341980679,1731342655170,-1193.57,0.00013698,2]
[341980680,1731342655422,-500.0,0.00013698,2]
[341980681,1731342655447,-500.0,0.00013698,2]
[341980682,1731342655461,-1193.57,0.00013698,2]
[341980683,1731342655470,-500.0,0.00013698,2]
[341980684,1731342655479,-1193.57,0.00013698,2]
[341980685,1731342655489,-549.24439249,0.00013698,2]
[341980686,1731342655498,-1193.57,0.00013698,2]
[341980687,1731342655510,-1193.57,0.00013698,2]
[341980688,1731342655519,-1193.57,0.00013698,2]
[341980689,1731342655527,-1193.57,0.00013698,2]
[341980690,1731342655537,-1193.57,0.00013698,2]
[341980691,1731342655546,-1193.57,0.00013698,2]
[341980692,1731342655555,-1193.57,0.00013698,2]
[341980693,1731342655564,-1193.57,0.00013698,2]
[341980694,1731342655573,-1193.57,0.00013698,2]
[341980695,1731342655582,-500.0,0.00013698,2]
[341980696,1731342655591,-500.0,0.00013698,2]
[341980697,1731342655601,-500.0,0.00013698,2]
[341980698,1731342655611,-500.0,0.00013698,2]
[341980699,1731342655621,-500.0,0.00013698,2]
[341980700,1731342655634,-500.0,0.00013698,2]
[341980701,1731342655643,-500.0,0.00013698,2]
[341980702,1731342655653,-500.0,0.00013698,2]
[341980703,1731342655662,-454.62072012,0.00013698,2]
[341980704,1731342655674,-659.37,0.00013698,2]
[341980705,1731342655684,-659.37,0.00013698,2]
[341980706,1731342655693,-500.0,0.00013698,2]
[341980707,1731342655702,-659.37,0.00013698,2]
[341980708,1731342655712,-500.0,0.00013698,2]
[341980709,1731342655721,-659.37,0.00013698,2]
[341980710,1731342655730,-659.37,0.00013698,2]
[341980711,1731342655739,-659.37,0.00013698,2]
[341980712,1731342655748,-659.37,0.00013698,2]
[341980713,1731342655760,-659.37,0.00013698,2]
[341980714,1731342655769,-659.37,0.00013698,2]
[341980715,1731342655778,-500.0,0.00013698,2]
[341980716,1731342655787,-659.37,0.00013698,2]
[341980717,1731342655796,-500.0,0.00013698,2]
[341980718,1731342655806,-659.37,0.00013698,2]
[341980719,1731342655815,-500.0,0.00013698,2]
[341980720,1731342655824,-659.37,0.00013698,2]
[341980721,1731342655832,-500.0,0.00013698,2]
[341980722,1731342655842,-659.37,0.00013698,2]
[341980723,1731342655851,-659.37,0.00013698,2]
[341980724,1731342655860,-525.93667867,0.00013698,2]
[341980725,1731342655869,-150.0,0.00013698,2]
[341980726,1731342655878,-150.0,0.00013698,2]
[341980727,1731342655887,-500.0,0.00013698,2]
[341980728,1731342655896,-608.62207657,0.00013698,2]
[341980729,1731342655905,-500.0,0.00013698,2]
[341980730,1731342655915,-500.0,0.00013698,2]
[341980731,1731342655924,-598.06,0.00013698,2]
[341980732,1731342655933,-598.06,0.00013698,2]
[341980733,1731342655942,-598.06,0.00013698,2]
[341980734,1731342655952,-598.06,0.00013698,2]
[341980735,1731342655961,-598.06,0.00013698,2]
[341980736,1731342655970,-598.06,0.00013698,2]
[341980737,1731342655979,-598.06,0.00013698,2]
[341980738,1731342655989,-598.06,0.00013698,2]
[341980739,1731342655998,-500.0,0.00013698,2]
[341980740,1731342656007,-598.06,0.00013698,2]
[341980741,1731342656018,-500.0,0.00013698,2]
[341980742,1731342656028,-598.06,0.00013698,2]
[341980743,1731342656038,-598.06,0.00013698,2]
[341980744,1731342656047,-1278.51,0.00013698,2]
[341980745,1731342656056,-598.06,0.00013698,2]
[341980746,1731342656065,-1278.51,0.00013698,2]
[341980747,1731342656074,-598.06,0.00013698,2]
[341980748,1731342656083,-1278.51,0.00013698,2]
[341980749,1731342656093,-598.06,0.00013698,2]
[341980750,1731342656102,-500.0,0.00013698,2]
[341980751,1731342656111,-1278.51,0.00013698,2]
[341980752,1731342656120,-1278.51,0.00013698,2]
[341980753,1731342656130,-500.0,0.00013698,2]
[341980754,1731342656139,-195.35586961,0.00013698,2]
[341980755,1731342656149,-605.47984106,0.00013698,2]
[341980756,1731342656158,-1278.51,0.00013698,2]
[341980757,1731342656168,-1278.51,0.00013698,2]
[341980758,1731342656178,-1278.51,0.00013698,2]
[341980759,1731342656188,-1278.51,0.00013698,2]
[341980760,1731342656197,-1278.51,0.00013698,2]
[341980761,1731342656207,-1278.51,0.00013698,2]
[341980762,1731342656217,-1278.51,0.00013698,2]
[341980763,1731342656227,-500.0,0.00013698,2]
[341980764,1731342656237,-1278.51,0.00013698,2]
[341980765,1731342656247,-1278.51,0.00013698,2]
[341980766,1731342656257,-500.0,0.00013698,2]
[341980767,1731342656269,-500.0,0.00013698,2]
[341980768,1731342656279,-500.0,0.00013698,2]
[341980769,1731342656289,-500.0,0.00013698,2]
[341980770,1731342656298,-500.0,0.00013698,2]
[341980771,1731342656307,-500.0,0.00013698,2]
[341980772,1731342656317,-500.0,0.00013698,2]
[341980773,1731342656327,-500.0,0.00013698,2]
[341980774,1731342656337,-500.0,0.00013698,2]
[341980775,1731342656346,-500.0,0.00013698,2]
[341980776,1731342656356,-500.0,0.00013698,2]
[341980777,1731342656365,-461.79481992,0.00013698,2]
[341980778,1731342656375,-500.0,0.00013698,2]
[341980779,1731342656385,-500.0,0.00013698,2]
[341980780,1731342656394,-500.0,0.00013698,2]
[341980781,1731342656404,-500.0,0.00013698,2]
[341980782,1731342656413,-500.0,0.00013698,2]
[341980783,1731342656423,-500.0,0.00013698,2]
[341980784,1731342656432,-500.0,0.00013698,2]
[341980785,1731342656442,-500.0,0.00013698,2]
[341980786,1731342656451,-605.4,0.00013698,2]
[341980787,1731342656460,-500.0,0.00013698,2]
[341980788,1731342656469,-605.4,0.00013698,2]
[341980789,1731342656479,-500.0,0.00013698,2]
[341980790,1731342656489,-533.97239198,0.00013698,2]
[341980791,1731342656499,-605.4,0.00013698,2]
[341980792,1731342656508,-605.4,0.00013698,2]
[341980793,1731342656519,-605.4,0.00013698,2]
[341980794,1731342656528,-500.0,0.00013698,2]
[341980795,1731342656537,-605.4,0.00013698,2]
[341980796,1731342656547,-500.0,0.00013698,2]
[341980797,1731342656556,-605.4,0.00013698,2]
[341980798,1731342656565,-500.0,0.00013698,2]
[341980799,1731342656575,-605.4,0.00013698,2]
[341980800,1731342656584,-500.0,0.00013698,2]
[341980801,1731342656594,-605.4,0.00013698,2]
[341980802,1731342656604,-500.0,0.00013698,2]
[341980803,1731342656613,-500.0,0.00013698,2]